[Event "*** Titled Tuesday Blitz"]
[Site "Chess.com"]
[Date "2020.04.07"]
[Round "9"]
[White "medalja"]
[Black "Shivagami"]
[Result "1-0"]
[WhiteElo "2449"]
[BlackElo "2186"]
[TimeControl "180+1"]
[EndTime "14:46:56 PDT"]
[Termination "medalja won on time"]

1. d4 {[%clk 0:03:00.9]} 1... Nf6 {[%clk 0:02:59.2]} 2. c4 {[%clk 0:03:01.1]}
2... c5 {[%clk 0:02:58.7]} 3. d5 {[%clk 0:03:00.8]} 3... e6 {[%clk 0:02:59.1]}
4. Nc3 {[%clk 0:03:00.6]} 4... exd5 {[%clk 0:02:57.2]} 5. cxd5 {[%clk
0:03:01.5]} 5... d6 {[%clk 0:02:56.9]} 6. e4 {[%clk 0:03:02]} 6... g6 {[%clk
0:02:57.3]} 7. f4 {[%clk 0:03:01.4]} 7... Bg7 {[%clk 0:02:55.6]} 8. Bb5+ {[%clk
0:03:00]} 8... Bd7 {[%clk 0:02:53.4]} 9. e5 {[%clk 0:02:58.9]} 9... dxe5 {[%clk
0:02:23.9]} 10. fxe5 {[%clk 0:02:59.8]} 10... Nh5 {[%clk 0:02:23.3]} 11. Nf3
{[%clk 0:02:36.2]} 11... O-O {[%clk 0:02:14.2]} 12. O-O {[%clk 0:02:34.9]} 12...
Bxb5 {[%clk 0:02:01.4]} 13. Nxb5 {[%clk 0:02:35.8]} 13... Nd7 {[%clk 0:02:01.3]}
14. e6 {[%clk 0:02:25.6]} 14... Qb6 {[%clk 0:01:08.6]} 15. Qe2 {[%clk
0:01:32.5]} 15... fxe6 {[%clk 0:01:02.2]} 16. dxe6 {[%clk 0:01:32.2]} 16... Rae8
{[%clk 0:00:54.6]} 17. Ng5 {[%clk 0:01:19.8]} 17... h6 {[%clk 0:00:38.4]} 18.
Qc4 {[%clk 0:00:57.1]} 18... Ne5 {[%clk 0:00:21.2]} 19. Rxf8+ {[%clk 0:00:36.8]}
19... Bxf8 {[%clk 0:00:17.4]} 20. Qd5 {[%clk 0:00:30.4]} 20... c4+ {[%clk
0:00:10.9]} 21. Nd4 {[%clk 0:00:27.7]} 21... hxg5 {[%clk 0:00:07.7]} 22. e7+
{[%clk 0:00:20.4]} 22... Nf7 {[%clk 0:00:06.3]} 23. exf8=Q+ {[%clk 0:00:20.4]}
23... Rxf8 {[%clk 0:00:06]} 24. Bxg5 {[%clk 0:00:20.3]} 24... Re8 {[%clk
0:00:04.2]} 25. Rf1 {[%clk 0:00:19.4]} 25... Rf8 {[%clk 0:00:04]} 26. Bh6 {[%clk
0:00:18.7]} 1-0

[Event "*** Titled Tuesday Blitz"]
[Site "Chess.com"]
[Date "2020.04.07"]
[Round "9"]
[White "Supelyel"]
[Black "aquiles88"]
[Result "0-1"]
[WhiteElo "2315"]
[BlackElo "2229"]
[TimeControl "180+1"]
[EndTime "14:46:57 PDT"]
[Termination "aquiles88 won by resignation"]

1. c4 {[%clk 0:03:00.9]} 1... e5 {[%clk 0:02:59.2]} 2. Nc3 {[%clk 0:02:59.3]}
2... Nf6 {[%clk 0:02:59.3]} 3. Nf3 {[%clk 0:02:57.7]} 3... Nc6 {[%clk
0:02:58.6]} 4. g3 {[%clk 0:02:57.4]} 4... d5 {[%clk 0:02:58.4]} 5. cxd5 {[%clk
0:02:56.5]} 5... Nxd5 {[%clk 0:02:59.3]} 6. Bg2 {[%clk 0:02:56.9]} 6... Nb6
{[%clk 0:02:58.5]} 7. O-O {[%clk 0:02:57]} 7... Be7 {[%clk 0:02:58.3]} 8. a3
{[%clk 0:02:56.4]} 8... a5 {[%clk 0:02:58.1]} 9. Na4 {[%clk 0:02:56.4]} 9...
Nxa4 {[%clk 0:02:56.2]} 10. Qxa4 {[%clk 0:02:56.5]} 10... O-O {[%clk 0:02:56.9]}
11. d3 {[%clk 0:02:45.9]} 11... Be6 {[%clk 0:02:56.6]} 12. Be3 {[%clk
0:02:40.5]} 12... Qd7 {[%clk 0:02:50.5]} 13. Rfc1 {[%clk 0:02:30.2]} 13... Bh3
{[%clk 0:02:46.7]} 14. Bh1 {[%clk 0:02:12.7]} 14... Nd4 {[%clk 0:02:30.1]} 15.
Qd1 {[%clk 0:01:54.5]} 15... Nxf3+ {[%clk 0:02:28.1]} 16. Bxf3 {[%clk
0:01:52.7]} 16... c6 {[%clk 0:02:28.3]} 17. Bc5 {[%clk 0:01:23.3]} 17... Bxc5
{[%clk 0:02:18.2]} 18. Rxc5 {[%clk 0:01:22.8]} 18... f6 {[%clk 0:02:17.4]} 19.
Rb1 {[%clk 0:01:17.2]} 19... a4 {[%clk 0:02:09.5]} 20. Rc4 {[%clk 0:01:04.9]}
20... Be6 {[%clk 0:02:09.5]} 21. Rxa4 {[%clk 0:00:57]} 21... Rxa4 {[%clk
0:02:01.8]} 22. Qxa4 {[%clk 0:00:56.7]} 22... Rd8 {[%clk 0:02:02.7]} 23. Rc1
{[%clk 0:00:51.5]} 23... Bd5 {[%clk 0:02:01.5]} 24. Bxd5+ {[%clk 0:00:49.7]}
24... Qxd5 {[%clk 0:02:02.4]} 25. Qc4 {[%clk 0:00:48.9]} 25... Kf7 {[%clk
0:02:02.1]} 26. Qxd5+ {[%clk 0:00:48.7]} 26... Rxd5 {[%clk 0:02:02.3]} 27. Kf1
{[%clk 0:00:43.9]} 27... Rb5 {[%clk 0:02:01.7]} 28. b4 {[%clk 0:00:42.5]} 28...
Rd5 {[%clk 0:01:56.9]} 29. Rc4 {[%clk 0:00:34.1]} 29... Ke7 {[%clk 0:01:53.5]}
30. Ke1 {[%clk 0:00:29.3]} 30... Rd8 {[%clk 0:01:51.1]} 31. Kd2 {[%clk
0:00:28.8]} 31... Ra8 {[%clk 0:01:51.1]} 32. Rc3 {[%clk 0:00:29.1]} 32... Kd6
{[%clk 0:01:49.6]} 33. Kc2 {[%clk 0:00:22.3]} 33... b5 {[%clk 0:01:46.2]} 34.
Kb3 {[%clk 0:00:22.1]} 34... Re8 {[%clk 0:01:46]} 35. e4 {[%clk 0:00:19.9]}
35... h5 {[%clk 0:01:43.2]} 36. h3 {[%clk 0:00:15.1]} 36... h4 {[%clk
0:01:42.1]} 37. g4 {[%clk 0:00:15.1]} 37... Ra8 {[%clk 0:01:42.1]} 38. f3 {[%clk
0:00:15.1]} 38... Ra7 {[%clk 0:01:40.9]} 39. Rc2 {[%clk 0:00:14.9]} 39... Ra8
{[%clk 0:01:39]} 40. Kc3 {[%clk 0:00:15.5]} 40... Rxa3+ {[%clk 0:01:37.9]} 41.
Kd2 {[%clk 0:00:15.5]} 41... Rb3 {[%clk 0:01:34.4]} 42. Ra2 {[%clk 0:00:15.6]}
42... Rxb4 {[%clk 0:01:34.7]} 43. Ra7 {[%clk 0:00:15.7]} 43... g5 {[%clk
0:01:31.6]} 44. Rf7 {[%clk 0:00:14.3]} 44... Ke6 {[%clk 0:01:31.5]} 45. Rf8
{[%clk 0:00:14.8]} 45... Rb2+ {[%clk 0:01:30.9]} 46. Ke3 {[%clk 0:00:15]} 46...
Rh2 {[%clk 0:01:31.2]} 47. Rc8 {[%clk 0:00:15.2]} 47... Kd7 {[%clk 0:01:30.5]}
48. Rf8 {[%clk 0:00:15.1]} 48... Ke7 {[%clk 0:01:30.6]} 49. Rc8 {[%clk
0:00:15.2]} 49... Rxh3 {[%clk 0:01:30.2]} 50. Rxc6 {[%clk 0:00:15]} 50... Rh1
{[%clk 0:01:29.9]} 51. Rb6 {[%clk 0:00:15.3]} 51... Rb1 {[%clk 0:01:30.1]} 52.
Rb7+ {[%clk 0:00:15.4]} 52... Ke6 {[%clk 0:01:29.7]} 53. Rb6+ {[%clk 0:00:14.1]}
53... Kf7 {[%clk 0:01:29.4]} 54. d4 {[%clk 0:00:13.1]} 54... Rb3+ {[%clk
0:01:28.5]} 55. Ke2 {[%clk 0:00:12.4]} 55... exd4 {[%clk 0:01:29]} 56. Rd6
{[%clk 0:00:12.6]} 56... d3+ {[%clk 0:01:26.6]} 57. Kf2 {[%clk 0:00:12.1]} 57...
Rb2+ {[%clk 0:01:24.5]} 58. Ke3 {[%clk 0:00:12.6]} 58... d2 {[%clk 0:01:24.8]}
0-1

[Event "*** Titled Tuesday Blitz"]
[Site "Chess.com"]
[Date "2020.04.07"]
[Round "9"]
[White "poliplaza"]
[Black "GameOverBro"]
[Result "0-1"]
[WhiteElo "2369"]
[BlackElo "2500"]
[TimeControl "180+1"]
[EndTime "14:46:58 PDT"]
[Termination "GameOverBro won on time"]

1. d4 {[%clk 0:03:00]} 1... d6 {[%clk 0:03:00.1]} 2. c4 {[%clk 0:03:00.5]} 2...
Nf6 {[%clk 0:03:00.4]} 3. Nc3 {[%clk 0:02:57.4]} 3... Nbd7 {[%clk 0:03:00.9]} 4.
Nf3 {[%clk 0:02:55.7]} 4... e5 {[%clk 0:03:01.5]} 5. e3 {[%clk 0:02:55.2]} 5...
Be7 {[%clk 0:03:02]} 6. Be2 {[%clk 0:02:51.9]} 6... c6 {[%clk 0:03:01.3]} 7. O-O
{[%clk 0:02:51.8]} 7... Qc7 {[%clk 0:03:01.4]} 8. b4 {[%clk 0:02:50]} 8... O-O
{[%clk 0:02:43]} 9. a4 {[%clk 0:02:43]} 9... e4 {[%clk 0:02:40.3]} 10. Nd2
{[%clk 0:02:41.2]} 10... d5 {[%clk 0:02:40.4]} 11. b5 {[%clk 0:02:37.3]} 11...
a6 {[%clk 0:02:32.5]} 12. bxc6 {[%clk 0:02:27]} 12... bxc6 {[%clk 0:02:32.2]}
13. Ba3 {[%clk 0:02:21.2]} 13... Bxa3 {[%clk 0:02:24.3]} 14. Rxa3 {[%clk
0:02:22.1]} 14... Qd6 {[%clk 0:01:55.9]} 15. c5 {[%clk 0:02:19.9]} 15... Qc7
{[%clk 0:01:53.9]} 16. a5 {[%clk 0:02:13.9]} 16... Ne8 {[%clk 0:01:36.1]} 17.
Na4 {[%clk 0:01:37]} 17... Qd8 {[%clk 0:01:26.5]} 18. Nb6 {[%clk 0:01:30.9]}
18... Ra7 {[%clk 0:01:24.6]} 19. Qa4 {[%clk 0:01:25.8]} 19... Nb8 {[%clk
0:01:21]} 20. Rb3 {[%clk 0:01:20.4]} 20... Rb7 {[%clk 0:01:10.2]} 21. Rfb1
{[%clk 0:01:16.5]} 21... Nc7 {[%clk 0:01:02.6]} 22. R1b2 {[%clk 0:00:09.7]}
22... Nb5 {[%clk 0:01:01.9]} 23. Nb1 {[%clk 0:00:07.6]} 23... f5 {[%clk
0:00:57.9]} 24. Nc3 {[%clk 0:00:05.4]} 24... f4 {[%clk 0:00:57.3]} 25. exf4
{[%clk 0:00:03.7]} 25... Rxf4 {[%clk 0:00:56.5]} 26. Nxc8 {[%clk 0:00:03.6]}
26... Qxc8 {[%clk 0:00:55.8]} 27. Bxb5 {[%clk 0:00:03.8]} 27... axb5 {[%clk
0:00:55.7]} 28. Qa1 {[%clk 0:00:03.4]} 28... Na6 {[%clk 0:00:55]} 29. Qc1 {[%clk
0:00:03.7]} 29... Rbf7 {[%clk 0:00:55.1]} 30. Nd1 {[%clk 0:00:02.7]} 30... Qg4
{[%clk 0:00:51.5]} 31. Ne3 {[%clk 0:00:02.8]} 31... Qg5 {[%clk 0:00:49.5]} 32.
g3 {[%clk 0:00:02.5]} 32... Rf3 {[%clk 0:00:49.1]} 33. Kg2 {[%clk 0:00:02.3]}
33... h5 {[%clk 0:00:49.1]} 34. Qd1 {[%clk 0:00:02.2]} 34... h4 {[%clk
0:00:48.9]} 35. Nf1 {[%clk 0:00:02.3]} 35... Qh5 {[%clk 0:00:48.6]} 36. Rxf3
{[%clk 0:00:02]} 36... exf3+ {[%clk 0:00:44.8]} 37. Kg1 {[%clk 0:00:02.1]} 37...
hxg3 {[%clk 0:00:39.8]} 38. fxg3 {[%clk 0:00:03]} 38... f2+ {[%clk 0:00:38.6]}
0-1

[Event "*** Titled Tuesday Blitz"]
[Site "Chess.com"]
[Date "2020.04.07"]
[Round "9"]
[White "vizumatv4hoda"]
[Black "champ2005"]
[Result "1/2-1/2"]
[WhiteElo "2759"]
[BlackElo "2976"]
[TimeControl "180+1"]
[EndTime "14:47:01 PDT"]
[Termination "Game drawn by repetition"]

1. e4 {[%clk 0:03:00.9]} 1... Nf6 {[%clk 0:03:00.9]} 2. Nc3 {[%clk 0:02:58.6]}
2... d5 {[%clk 0:02:59.5]} 3. e5 {[%clk 0:02:58.5]} 3... d4 {[%clk 0:02:59.9]}
4. exf6 {[%clk 0:02:58.4]} 4... dxc3 {[%clk 0:03:00.2]} 5. fxg7 {[%clk
0:02:59.3]} 5... cxd2+ {[%clk 0:02:59]} 6. Qxd2 {[%clk 0:03:00.2]} 6... Qxd2+
{[%clk 0:02:59]} 7. Bxd2 {[%clk 0:03:01.1]} 7... Bxg7 {[%clk 0:02:59.9]} 8.
O-O-O {[%clk 0:03:01.5]} 8... Nc6 {[%clk 0:02:58.2]} 9. Nf3 {[%clk 0:03:01.2]}
9... Bg4 {[%clk 0:02:58.2]} 10. Bb5 {[%clk 0:02:59.1]} 10... O-O-O {[%clk
0:02:48.7]} 11. Bxc6 {[%clk 0:02:56.6]} 11... bxc6 {[%clk 0:02:49.6]} 12. Bc3
{[%clk 0:02:57.2]} 12... Bxc3 {[%clk 0:02:44.5]} 13. bxc3 {[%clk 0:02:58.1]}
13... Rxd1+ {[%clk 0:02:44]} 14. Rxd1 {[%clk 0:02:58.8]} 14... Bxf3 {[%clk
0:02:43.9]} 15. gxf3 {[%clk 0:02:57.7]} 15... Rg8 {[%clk 0:02:44.8]} 16. Kd2
{[%clk 0:02:18.2]} 16... Rg2 {[%clk 0:02:34.3]} 17. Ke2 {[%clk 0:02:15]} 17...
Rxh2 {[%clk 0:02:34.2]} 18. Rg1 {[%clk 0:02:13.1]} 18... Kd7 {[%clk 0:02:30.8]}
19. Rg8 {[%clk 0:02:09]} 19... Rh5 {[%clk 0:02:29.2]} 20. a4 {[%clk 0:01:57.2]}
20... f6 {[%clk 0:02:12.4]} 21. Kd3 {[%clk 0:01:46]} 21... Ra5 {[%clk
0:02:10.4]} 22. Rh8 {[%clk 0:01:41.7]} 22... h5 {[%clk 0:02:10]} 23. Ke3 {[%clk
0:01:38.9]} 23... Ke6 {[%clk 0:02:07.1]} 24. f4 {[%clk 0:01:32.9]} 24... Kd6
{[%clk 0:01:59.9]} 25. Rd8+ {[%clk 0:01:26.8]} 25... Ke6 {[%clk 0:01:59.9]} 26.
Rh8 {[%clk 0:01:27.5]} 26... Kd7 {[%clk 0:01:56.5]} 27. Rh7 {[%clk 0:01:11.2]}
27... Kd6 {[%clk 0:01:47.4]} 28. Rh8 {[%clk 0:01:08.1]} 28... Rxa4 {[%clk
0:01:37.2]} 29. Rxh5 {[%clk 0:01:08.3]} 29... Ra1 {[%clk 0:01:37.5]} 30. Kd4
{[%clk 0:01:05]} 30... a5 {[%clk 0:01:31.6]} 31. Rh8 {[%clk 0:01:05.2]} 31...
Kd7 {[%clk 0:01:26.5]} 32. Ra8 {[%clk 0:01:04]} 32... a4 {[%clk 0:01:23.4]} 33.
c4 {[%clk 0:01:02.1]} 33... a3 {[%clk 0:01:20.3]} 34. Kc5 {[%clk 0:00:51.9]}
34... a2 {[%clk 0:01:16.7]} 35. c3 {[%clk 0:00:42.6]} 35... Rc1 {[%clk
0:00:44.7]} 36. Rxa2 {[%clk 0:00:41.4]} 36... Rxc3 {[%clk 0:00:45.1]} 37. Rd2+
{[%clk 0:00:37.2]} 37... Kc8 {[%clk 0:00:38.3]} 38. Re2 {[%clk 0:00:32.2]} 38...
Kd7 {[%clk 0:00:37.9]} 39. Rd2+ {[%clk 0:00:32.2]} 39... Ke6 {[%clk 0:00:36]}
40. Re2+ {[%clk 0:00:27.2]} 40... Kd7 {[%clk 0:00:23.7]} 41. Rd2+ {[%clk
0:00:27]} 1/2-1/2

[Event "*** Titled Tuesday Blitz"]
[Site "Chess.com"]
[Date "2020.04.07"]
[Round "9"]
[White "praveenb2002"]
[Black "Vaathi_Coming"]
[Result "1/2-1/2"]
[WhiteElo "2654"]
[BlackElo "2841"]
[TimeControl "180+1"]
[EndTime "14:47:03 PDT"]
[Termination "Game drawn - insufficient material"]

1. d4 {[%clk 0:03:00.9]} 1... d5 {[%clk 0:02:59.4]} 2. c4 {[%clk 0:03:01]} 2...
e6 {[%clk 0:02:59.5]} 3. Nf3 {[%clk 0:03:00.9]} 3... Nf6 {[%clk 0:02:59.5]} 4.
Nc3 {[%clk 0:03:00.9]} 4... c6 {[%clk 0:02:58.5]} 5. e3 {[%clk 0:02:58.3]} 5...
Nbd7 {[%clk 0:02:58]} 6. Bd3 {[%clk 0:02:57.1]} 6... dxc4 {[%clk 0:02:58.1]} 7.
Bxc4 {[%clk 0:02:57.6]} 7... b5 {[%clk 0:02:56.6]} 8. Bd3 {[%clk 0:02:58.2]}
8... a6 {[%clk 0:02:56.5]} 9. Qc2 {[%clk 0:02:56.5]} 9... c5 {[%clk 0:02:55.5]}
10. a4 {[%clk 0:02:55.7]} 10... b4 {[%clk 0:02:50.9]} 11. Ne2 {[%clk 0:02:52.8]}
11... Bb7 {[%clk 0:02:50.3]} 12. Ng3 {[%clk 0:02:51.2]} 12... Bxf3 {[%clk
0:02:46.3]} 13. gxf3 {[%clk 0:02:51.1]} 13... cxd4 {[%clk 0:02:46.1]} 14. exd4
{[%clk 0:02:50.7]} 14... Bd6 {[%clk 0:02:46.2]} 15. O-O {[%clk 0:02:49.2]} 15...
O-O {[%clk 0:02:45.9]} 16. Be3 {[%clk 0:02:47.8]} 16... Rc8 {[%clk 0:02:42.4]}
17. Qe2 {[%clk 0:02:46.7]} 17... a5 {[%clk 0:02:42.2]} 18. Rac1 {[%clk
0:02:45.2]} 18... Rxc1 {[%clk 0:02:39.8]} 19. Rxc1 {[%clk 0:02:44.3]} 19... Nd5
{[%clk 0:02:40.7]} 20. Bd2 {[%clk 0:02:40.3]} 20... Bf4 {[%clk 0:02:32.8]} 21.
Bxf4 {[%clk 0:02:18]} 21... Nxf4 {[%clk 0:02:33.7]} 22. Qe4 {[%clk 0:02:18.7]}
22... Nxd3 {[%clk 0:02:33.3]} 23. Qxd3 {[%clk 0:02:18.9]} 23... Ne5 {[%clk
0:02:34.2]} 24. Qe3 {[%clk 0:02:13]} 24... Qxd4 {[%clk 0:02:34.2]} 25. f4 {[%clk
0:02:13.6]} 25... Qxe3 {[%clk 0:02:29.2]} 26. fxe3 {[%clk 0:02:14.5]} 26... Nd3
{[%clk 0:02:29.6]} 27. Rc2 {[%clk 0:02:14.5]} 27... Rb8 {[%clk 0:02:15.7]} 28.
Ne4 {[%clk 0:02:03.4]} 28... f5 {[%clk 0:02:14.6]} 29. Nd2 {[%clk 0:01:56.2]}
29... b3 {[%clk 0:02:14.1]} 30. Rc3 {[%clk 0:01:56.1]} 30... Nxb2 {[%clk
0:02:14.2]} 31. Rxb3 {[%clk 0:01:56.3]} 31... Rxb3 {[%clk 0:02:08.8]} 32. Nxb3
{[%clk 0:01:57.2]} 32... Nxa4 {[%clk 0:02:05.9]} 33. Nxa5 {[%clk 0:01:57.6]}
33... Nb2 {[%clk 0:02:02.3]} 34. Nc6 {[%clk 0:01:55.2]} 34... Nd1 {[%clk
0:02:00]} 35. Nd8 {[%clk 0:01:55.3]} 35... Nxe3 {[%clk 0:01:56.1]} 36. Nxe6
{[%clk 0:01:55.3]} 36... Nd5 {[%clk 0:01:48.9]} 37. Kf2 {[%clk 0:01:51]} 37...
Kf7 {[%clk 0:01:49.1]} 38. Nd4 {[%clk 0:01:50.6]} 38... Kf6 {[%clk 0:01:46.1]}
39. Kf3 {[%clk 0:01:50.4]} 39... g6 {[%clk 0:01:46]} 40. Ne2 {[%clk 0:01:49.9]}
40... Nc7 {[%clk 0:01:45.9]} 41. Nd4 {[%clk 0:01:48.4]} 41... Ne6 {[%clk
0:01:46.8]} 42. Nc6 {[%clk 0:01:48.1]} 42... Kf7 {[%clk 0:01:46]} 43. Ne5+
{[%clk 0:01:48]} 43... Ke7 {[%clk 0:01:46.1]} 44. Nc4 {[%clk 0:01:44.3]} 44...
Nd4+ {[%clk 0:01:44.4]} 45. Ke3 {[%clk 0:01:43]} 45... Nc6 {[%clk 0:01:45.3]}
46. Kf3 {[%clk 0:01:42.6]} 46... Ke6 {[%clk 0:01:45.6]} 47. Nb6 {[%clk
0:01:42.3]} 47... Na5 {[%clk 0:01:37]} 48. Ke3 {[%clk 0:01:41.7]} 48... Kd6
{[%clk 0:01:36.6]} 49. Kd4 {[%clk 0:01:38.4]} 49... Nb3+ {[%clk 0:01:36.2]} 50.
Kc3 {[%clk 0:01:33.9]} 50... Nc5 {[%clk 0:01:35.2]} 51. Kd4 {[%clk 0:01:33.6]}
51... Ne6+ {[%clk 0:01:30]} 52. Ke3 {[%clk 0:01:33.5]} 52... Nd8 {[%clk
0:01:23.3]} 53. Nc4+ {[%clk 0:01:30.7]} 53... Kd5 {[%clk 0:01:22.5]} 54. Nb6+
{[%clk 0:01:29.9]} 54... Kc6 {[%clk 0:01:20]} 55. Nc4 {[%clk 0:01:30.1]} 55...
Kc5 {[%clk 0:01:18.2]} 56. Ne5 {[%clk 0:01:28.6]} 56... Kd5 {[%clk 0:01:17.7]}
57. Nd7 {[%clk 0:01:28.3]} 57... Ne6 {[%clk 0:01:04.1]} 58. Nf6+ {[%clk
0:01:28]} 58... Kd6 {[%clk 0:01:03.4]} 59. Nxh7 {[%clk 0:01:28.3]} 59... Ke7
{[%clk 0:01:03.6]} 60. h4 {[%clk 0:01:26.6]} 60... Kd6 {[%clk 0:00:58.6]} 61.
Ng5 {[%clk 0:01:26.8]} 61... Nxg5 {[%clk 0:00:58.6]} 62. fxg5 {[%clk 0:01:16.1]}
62... Ke5 {[%clk 0:00:54.1]} 63. Kf3 {[%clk 0:01:15.6]} 63... f4 {[%clk
0:00:42.1]} 64. h5 {[%clk 0:01:13.1]} 64... gxh5 {[%clk 0:00:42.3]} 65. g6
{[%clk 0:01:13.7]} 65... Kf6 {[%clk 0:00:42.8]} 66. Kxf4 {[%clk 0:01:14]} 66...
Kg7 {[%clk 0:00:43.7]} 67. Kg3 {[%clk 0:01:14.7]} 67... h4+ {[%clk 0:00:44.4]}
68. Kxh4 {[%clk 0:01:15]} 68... Kxg6 {[%clk 0:00:45.3]} 1/2-1/2

[Event "*** Titled Tuesday Blitz"]
[Site "Chess.com"]
[Date "2020.04.07"]
[Round "9"]
[White "ChessQueen"]
[Black "Mr_Sinigami"]
[Result "1-0"]
[WhiteElo "2780"]
[BlackElo "2618"]
[TimeControl "180+1"]
[EndTime "14:47:03 PDT"]
[Termination "ChessQueen won on time"]

1. e4 {[%clk 0:03:00.9]} 1... d5 {[%clk 0:02:58.4]} 2. exd5 {[%clk 0:03:00.6]}
2... Qxd5 {[%clk 0:02:58.9]} 3. Nc3 {[%clk 0:03:00.9]} 3... Qd6 {[%clk
0:02:59.3]} 4. d4 {[%clk 0:03:01.2]} 4... Nf6 {[%clk 0:02:59.7]} 5. Nf3 {[%clk
0:03:01.4]} 5... a6 {[%clk 0:03:00]} 6. d5 {[%clk 0:02:49.5]} 6... b5 {[%clk
0:02:51.8]} 7. Qd4 {[%clk 0:02:41.3]} 7... c5 {[%clk 0:02:13.3]} 8. dxc6 {[%clk
0:02:37.1]} 8... Qxd4 {[%clk 0:01:58.5]} 9. Nxd4 {[%clk 0:02:36.7]} 9... e5
{[%clk 0:01:58.2]} 10. c7 {[%clk 0:02:11.8]} 10... exd4 {[%clk 0:01:56.2]} 11.
cxb8=Q {[%clk 0:02:11.8]} 11... Rxb8 {[%clk 0:01:55.7]} 12. Ne2 {[%clk
0:02:11.9]} 12... Bb4+ {[%clk 0:01:44.8]} 13. Bd2 {[%clk 0:02:12.1]} 13... Bxd2+
{[%clk 0:01:41]} 14. Kxd2 {[%clk 0:02:13]} 14... Ne4+ {[%clk 0:01:40.6]} 15. Ke1
{[%clk 0:02:13]} 15... O-O {[%clk 0:01:17.7]} 16. Rd1 {[%clk 0:02:13]} 16... Bf5
{[%clk 0:01:04]} 17. Rxd4 {[%clk 0:02:04]} 17... Rbc8 {[%clk 0:00:53.3]} 18. f3
{[%clk 0:01:37.2]} 18... Nc5 {[%clk 0:00:47.2]} 19. Rd2 {[%clk 0:01:37.3]} 19...
Rfe8 {[%clk 0:00:39.3]} 20. Kd1 {[%clk 0:01:37.5]} 20... b4 {[%clk 0:00:27.7]}
21. Nd4 {[%clk 0:01:33.9]} 21... Bg6 {[%clk 0:00:27]} 22. b3 {[%clk 0:01:23.7]}
22... Red8 {[%clk 0:00:20.1]} 23. Bc4 {[%clk 0:01:21.8]} 23... a5 {[%clk
0:00:19.7]} 24. Re1 {[%clk 0:01:20.9]} 24... a4 {[%clk 0:00:19.3]} 25. Nc6
{[%clk 0:01:09.7]} 25... Rxd2+ {[%clk 0:00:16.6]} 26. Kxd2 {[%clk 0:01:10.6]}
26... Kf8 {[%clk 0:00:16.7]} 27. Nxb4 {[%clk 0:01:06.1]} 27... axb3 {[%clk
0:00:15.2]} 28. axb3 {[%clk 0:01:06.2]} 28... h5 {[%clk 0:00:11.5]} 29. h4
{[%clk 0:01:05.5]} 29... Rd8+ {[%clk 0:00:10.7]} 30. Kc3 {[%clk 0:01:05.3]}
30... Rc8 {[%clk 0:00:06.9]} 31. Nd5 {[%clk 0:01:00.1]} 31... Ne6 {[%clk
0:00:06.7]} 32. Re5 {[%clk 0:00:50.3]} 32... Rc6 {[%clk 0:00:04.1]} 33. g3
{[%clk 0:00:48.2]} 33... f6 {[%clk 0:00:02]} 34. Re1 {[%clk 0:00:45.4]} 34...
Bf7 {[%clk 0:00:02.5]} 35. Ra1 {[%clk 0:00:44]} 35... Rc8 {[%clk 0:00:02]} 36.
Ra7 {[%clk 0:00:43.2]} 1-0

[Event "*** Titled Tuesday Blitz"]
[Site "Chess.com"]
[Date "2020.04.07"]
[Round "9"]
[White "stasiek18"]
[Black "Haykos"]
[Result "0-1"]
[WhiteElo "2404"]
[BlackElo "2585"]
[TimeControl "180+1"]
[EndTime "14:47:04 PDT"]
[Termination "Haykos won on time"]

1. d4 {[%clk 0:03:00.9]} 1... d5 {[%clk 0:02:59.8]} 2. Bf4 {[%clk 0:03:01]} 2...
Nf6 {[%clk 0:03:00.2]} 3. e3 {[%clk 0:03:01.1]} 3... c5 {[%clk 0:03:00.8]} 4.
Nf3 {[%clk 0:03:01.4]} 4... Nc6 {[%clk 0:03:01.4]} 5. Nbd2 {[%clk 0:02:59.5]}
5... cxd4 {[%clk 0:02:59.8]} 6. exd4 {[%clk 0:02:59.2]} 6... Bf5 {[%clk
0:02:59.8]} 7. c3 {[%clk 0:02:58.9]} 7... e6 {[%clk 0:02:59.4]} 8. Bb5 {[%clk
0:02:58.1]} 8... Nd7 {[%clk 0:02:52.1]} 9. O-O {[%clk 0:02:55.7]} 9... Be7
{[%clk 0:02:51.3]} 10. Re1 {[%clk 0:02:52.9]} 10... O-O {[%clk 0:02:51.5]} 11.
Nf1 {[%clk 0:02:42]} 11... a6 {[%clk 0:02:51]} 12. Bxc6 {[%clk 0:02:41.3]} 12...
bxc6 {[%clk 0:02:51.9]} 13. Qa4 {[%clk 0:02:37.9]} 13... c5 {[%clk 0:02:51.5]}
14. Ne5 {[%clk 0:02:34.3]} 14... cxd4 {[%clk 0:02:50.3]} 15. Nc6 {[%clk
0:02:28.3]} 15... Qe8 {[%clk 0:02:43.4]} 16. Nxe7+ {[%clk 0:02:25.2]} 16... Qxe7
{[%clk 0:02:43.5]} 17. Qxd4 {[%clk 0:02:25.4]} 17... Qc5 {[%clk 0:02:33.8]} 18.
Rad1 {[%clk 0:01:57.6]} 18... a5 {[%clk 0:02:29.3]} 19. Qd2 {[%clk 0:01:12.9]}
19... a4 {[%clk 0:02:14.9]} 20. Ng3 {[%clk 0:01:13]} 20... Bg6 {[%clk
0:02:14.4]} 21. h4 {[%clk 0:01:13.3]} 21... h5 {[%clk 0:01:48.4]} 22. Qe2 {[%clk
0:01:11.6]} 22... Nf6 {[%clk 0:01:33.5]} 23. Be5 {[%clk 0:01:07.4]} 23... Ng4
{[%clk 0:01:20.4]} 24. Bd4 {[%clk 0:01:07.6]} 24... Qc4 {[%clk 0:01:18.1]} 25.
Qd2 {[%clk 0:00:56.1]} 25... Kh7 {[%clk 0:00:48.7]} 26. f3 {[%clk 0:00:39.5]}
26... Nh6 {[%clk 0:00:48.6]} 27. Re5 {[%clk 0:00:39.1]} 27... Nf5 {[%clk
0:00:46.3]} 28. Nxf5 {[%clk 0:00:38.7]} 28... Bxf5 {[%clk 0:00:46.7]} 29. Qg5
{[%clk 0:00:35.7]} 29... Bg6 {[%clk 0:00:44]} 30. Re3 {[%clk 0:00:15]} 30... f6
{[%clk 0:00:44]} 31. Qg3 {[%clk 0:00:12.2]} 31... e5 {[%clk 0:00:43.6]} 32. Bb6
{[%clk 0:00:07.2]} 32... Rfb8 {[%clk 0:00:39.7]} 33. Bc7 {[%clk 0:00:05.8]}
33... Qxc7 {[%clk 0:00:39.1]} 34. Rxd5 {[%clk 0:00:03.9]} 34... Rd8 {[%clk
0:00:37.5]} 35. Rxd8 {[%clk 0:00:02.1]} 35... Rxd8 {[%clk 0:00:38.4]} 36. Kh2
{[%clk 0:00:01.9]} 36... Qb6 {[%clk 0:00:37.3]} 37. Re2 {[%clk 0:00:02.1]} 37...
Rd1 {[%clk 0:00:34.8]} 38. Rf2 {[%clk 0:00:02.4]} 38... Qe3 {[%clk 0:00:34.3]}
39. f4 {[%clk 0:00:01.5]} 39... exf4 {[%clk 0:00:30.7]} 0-1